[Event "87th Spanish Championship 2022"]
[Site "Linares"]
[Date "2022.08.13"]
[Round "4.27"]
[White "Moral Garcia, Serafin"]
[Black "Gonzalez Perez, Arian"]
[Result "0-1"]
[ECO "A04"]
[WhiteElo "2237"]
[BlackElo "2418"]
[Annotator "TA"]
[PlyCount "110"]
[EventDate "2022.08.11"]
[EventType "swiss"]
[EventCountry "ESP"]
[SourceTitle "playchess.com"]
[Source "ChessBase"]
[SourceQuality "1"]
[TimeControl "5400+30"]

{[%evp 17,110,25,29,29,36,26,34,27,44,29,36,52,33,49,45,39,37,39,72,75,68,34,52,68,61,0,14,24,17,0,0,0,77,70,70,23,18,16,0,0,10,-9,-35,-68,-68,-67,-40,-62,-31,-120,-116,-210,-224,-214,-209,-239,-219,-239,-239,-221,-249,-286,-276,-341,-322,-381,-356,-385,-378,-370,-322,-344,-336,-426,-418,-514,-514,-652,-600,-712,-708,-1209,-1225,-1200,-1122,-1086,-977,-1120,-1001,-29974,-29975,-6115,-5691,-29979,-7975]} 1. Nf3 {[%emt 0:00:00]} c5 {[%emt 0:07:30]} 2. b3 {[%emt 0:00:00]} b6 {[%emt 0:00:04]} 3. Bb2 Bb7 {[%emt 0:00:05]} 4. e3 {[%emt 0:01:00]} e6 {[%emt 0:00:05]} 5. Be2 {[%emt 0:01:14]} Nf6 {[%emt 0:00:30]} 6. O-O {[%emt 0:00:40]} Be7 {[%emt 0:00:55]} 7. c4 O-O {[%emt 0:00:02]} 8. d4 {[%emt 0:02:47]} cxd4 {[%emt 0:00:34]} 9. Nxd4 {[%emt 0:02:26]} a6 {[%emt 0:00:06]} 10. Nc3 {[%emt 0:01:56] A30: Symmetrical English: Double Fianchetto and Hedgehog.} d6 {[%emt 0:00:07]} 11. Bf3 {[%emt 0:03:25]} Qc7 {[%emt 0:00:09]} 12. Qe2 {[%emt 0:03:38] White is slightly better.} Nbd7 {[%emt 0:00:19]} 13. Rfd1 {[%emt 0:00:45]} Ne5 {[%emt 0:00:03]} 14. Bxb7 {[%emt 0:05:24]} Qxb7 {[%emt 0:04:38] [#]} 15. f4 $146 {[%emt 0:03:45]} ({Predecessor:} 15. Rd2 Rfc8 16. Rad1 Rc7 17. Rc2 Rac8 18. Rdc1 Ne4 19. Nxe4 Qxe4 20. Ba3 Bf8 21. f3 {0-1 (42) Abolianin,A (2275)-Rotstein,A (2493) Montpellier 1999}) 15... Ned7 {[%emt 0:02:40]} 16. f5 {[%emt 0:02:02]} e5 {[%emt 0:12:20]} 17. Nc2 {[%emt 0:02:28][%cal Bd4c2,Bc2b4,Bb4d5][%mdl 32]} Rfc8 {[%emt 0:09:09][%cal Ob6b5]} 18. Nb4 $1 {[%emt 0:04:47]} Bf8 {[%emt 0:02:43]} 19. Nbd5 {[%emt 0:06:19]} b5 {[%emt 0:01:53]} 20. cxb5 {[%emt 0:08:59]} axb5 21. a3 {[%emt 0:00:24]} ({Much worse is} 21. Qxb5 Qxb5 22. Nxf6+ (22. Nxb5 Nxd5 23. Rxd5 Rc2 $11) 22... Nxf6 $11) (21. Nxf6+ $1 $14 Nxf6 22. Nxb5 (22. Qxb5 Qxb5 23. Nxb5 Rc2 $11)) 21... Nxd5 {[%emt 0:05:24]} 22. Nxd5 Nc5 23. b4 {[%emt 0:05:17]} Na4 {[%emt 0:00:36]} 24. Rac1 {Inhibits Rc4.} Rc4 {[%emt 0:01:57]} (24... Rxc1 $11 25. Bxc1 Rc8) 25. Rxc4 $16 {[%emt 0:08:57]} bxc4 {[%emt 0:06:50]} 26. Qc2 (26. e4 $14) 26... Nb6 $1 $11 {[%emt 0:00:02]} 27. Nxb6 {[%emt 0:06:59]} Qxb6 {[%emt 0:00:01]} 28. Qxc4 {[%emt 0:02:45] White wants to play Rd3.} Qxe3+ {[%emt 0:00:30]} 29. Kh1 Qf2 {[%emt 0:00:00][%csl LRb2,LRf5]} 30. Qe4 {[%emt 0:08:27]} Rc8 31. Bc1 {[%emt 0:00:52]} Rc2 $40 {[%emt 0:05:15][%mdl 128] White must now prevent ...Re2. Black has some attack.} 32. Qf3 Qh4 33. h3 {[%emt 0:04:56] White is on the road to losing.} (33. Qd3 $15 Qf2 34. Qf3) 33... Qc4 $17 {[%emt 0:07:47]} 34. Qf1 {[%emt 0:00:31] [#]} (34. Bg5 $17) 34... Qxf1+ $1 $19 {[%emt 0:06:37]} 35. Rxf1 {[%emt 0:00:00][%mdl 4096] Endgame KRB-KRB} d5 {[%emt 0:00:01][%cal Bd6d5,Bd5d4][%mdl 32]} 36. Rd1 {[%emt 0:01:48] [#]} d4 $1 {[%emt 0:00:43]} 37. Kg1 {[%emt 0:01:41]} f6 {[%emt 0:03:24]} 38. Kf1 {[%emt 0:02:11]} g6 {[%emt 0:00:02]} 39. fxg6 {[%emt 0:01:14]} hxg6 {[%emt 0:00:02]} 40. Bd2 {[%emt 0:00:26]} Ra2 {[%emt 0:03:32]} 41. Be1 {[%emt 0:01:31]} Rxa3 {[%emt 0:00:12]} 42. Rb1 {[%emt 0:00:01]} Ra7 {[%emt 0:06:17]} 43. b5 {[%emt 0:00:39]} Rb7 {[%emt 0:00:01]} 44. b6 {[%emt 0:01:14]} Kf7 {[%emt 0:00:16]} ({Stronger than} 44... Bc5 45. Rb5 $17) 45. Ke2 {[%emt 0:00:18]} Ke6 {[%emt 0:00:53]} 46. Ba5 {[%emt 0:01:08]} Kd5 {[%emt 0:00:34]} 47. g4 {[%emt 0:00:48]} Bc5 {[%emt 0:00:23]} 48. h4 {[%emt 0:00:20]} e4 {[%emt 0:06:16]} 49. h5 {[%emt 0:00:00]} gxh5 {[%emt 0:00:22]} 50. gxh5 {[%emt 0:01:19]} f5 {[%emt 0:00:02][%cal Bf6f5,Bf5f4,Bf4f3,Bf3f2][%mdl 32] And now ...d3+ would win.} 51. h6 {[%emt 0:01:43]} f4 {[%emt 0:03:41]} 52. Rh1 f3+ 53. Kf2 {[%emt 0:04:34]} d3+ {[%emt 0:00:40]} 54. Kg3 {[%emt 0:01:46]} f2 {[%emt 0:00:11] Hoping for ...e3.} 55. Kg2 {[%emt 0:00:02]} e3 {[%emt 0:00:06] Weighted Error Value: White=0.66/Black=0.09 (flawless)} 0-1

[Event "87th Spanish Championship 2022"]
[Site "Linares"]
[Date "2022.08.13"]
[Round "4.28"]
[White "Castellanos Gomez, Alejandro"]
[Black "Garza Marco, Sergio"]
[Result "1/2-1/2"]
[ECO "A45"]
[WhiteElo "2266"]
[BlackElo "2408"]
[Annotator "TA"]
[PlyCount "133"]
[EventDate "2022.08.11"]
[EventType "swiss"]
[EventCountry "ESP"]
[SourceTitle "playchess.com"]
[Source "ChessBase"]
[SourceQuality "1"]
[TimeControl "5400+30"]

{[%evp 22,133,18,17,28,30,34,27,30,5,16,4,5,12,58,55,45,45,108,33,72,43,31,12,89,80,84,74,75,75,80,7,7,8,6,0,0,0,0,0,0,0,16,16,16,16,20,20,100,100,107,107,110,66,80,-104,-87,-109,0,0,14,14,79,0,0,0,4,7,7,0,0,0,0,0,8,0,0,0,0,0,0,0,0,0,0,0,0,0,0,0,0,0,0,0,0,0,0,0,8,8,8,8,8,0,8,0,8,0,8,8,8,8,8,8]} 1. d4 {[%emt 0:00:03]} Nf6 {[%emt 0:00:05]} 2. Bf4 {[%emt 0:00:38]} b6 {[%emt 0:02:04]} 3. e3 {[%emt 0:01:02]} Bb7 {[%emt 0:00:19]} 4. Nf3 {[%emt 0:01:00]} c5 {[%emt 0:01:51]} 5. h3 {[%emt 0:01:04]} g6 {[%emt 0:00:47]} 6. Be2 {[%emt 0:01:20]} Bg7 {[%emt 0:00:09]} 7. O-O {[%emt 0:00:18]} O-O {[%emt 0:00:05]} 8. a4 {[%emt 0:01:26]} a6 {[%emt 0:01:33]} 9. Nbd2 {[%emt 0:02:54]} d6 {[%emt 0:00:43]} 10. c3 {[%emt 0:02:27]} Nbd7 {[%emt 0:00:06]} 11. Re1 {[%emt 0:00:33]} Qc7 {[%emt 0:06:50]} 12. Bh2 {[%emt 0:00:26]} Rad8 {[%emt 0:05:04] [#] 12...Bc6 is the modern continuation. A48: 1 d4 Nf6 2 Nf3 g6: Torre, London and Colle Systems.} 13. b4 $146 {[%emt 0:06:41]} ({Predecessor:} 13. Qb3 Qb8 14. Bc4 Qa8 15. Rad1 Bc6 16. Bf1 b5 17. axb5 axb5 18. Bxb5 Bxb5 {½-½ (18) Gonzales,J (2455)-Nolte,R (2412) Tarakan 2008}) 13... Rc8 {[%emt 0:04:08]} 14. bxc5 {[%emt 0:03:27]} bxc5 {[%emt 0:00:05] White has an edge.} 15. Qb3 {[%emt 0:01:02]} cxd4 {[%emt 0:02:57]} 16. exd4 {[%emt 0:04:05]} Rb8 {[%emt 0:14:22] And now ...Bxf3 would win.} 17. Qa3 {[%emt 0:01:59]} Bh6 {[%emt 0:04:46]} (17... Rfe8 $11 {is more appropriate.}) 18. Bf1 $14 {[%emt 0:04:22]} Qd8 {[%emt 0:10:29]} 19. Rab1 {[%emt 0:02:36]} Nd5 {[%emt 0:03:27]} (19... Bc6 $14) 20. Rb2 {[%emt 0:08:26]} ({Better is} 20. c4 $16 Nf4 21. d5) 20... Nf4 {[%emt 0:05:40]} 21. Bg3 {[%emt 0:08:13]} Re8 {[%emt 0:01:55]} 22. Ne4 {[%emt 0:04:40]} Qc7 {[%emt 0:04:27]} (22... Nh5 $11) 23. Neg5 $16 {[%emt 0:02:45]} Bxf3 {[%emt 0:05:28]} 24. Bxf4 {[%emt 0:01:48]} Rxb2 {[%emt 0:01:22]} 25. Qxb2 {[%emt 0:00:32]} Bd5 {[%emt 0:07:52]} 26. c4 {[%emt 0:15:49]} (26. Bxa6 $16 {White wants to play Bb5.} Rb8 27. Qe2) 26... Bxg5 $11 {[%emt 0:02:16]} ({Don't do} 26... Bxc4 27. Qc1 Bxg5 28. Bxc4 $16) 27. Bxg5 {[%emt 0:00:02]} Bxc4 {[%emt 0:00:07]} 28. Bxc4 {[%emt 0:10:14]} Qxc4 {[%emt 0:00:08]} 29. Qb7 {[%emt 0:00:57]} Qxa4 {[%emt 0:00:29]} 30. Rxe7 {[%emt 0:00:39]} Rxe7 {[%emt 0:00:42]} 31. Bxe7 {[%emt 0:00:23][%mdl 4096] Endgame KQB-KQN} Qb5 {[%emt 0:05:38]} 32. Qc8+ {[%emt 0:01:27]} Kg7 {[%emt 0:00:01]} 33. Bxd6 {[%emt 0:00:15]} a5 {[%emt 0:00:07]} 34. d5 {[%emt 0:01:16]} h5 {[%emt 0:01:23]} (34... Qb1+ $1 $11 35. Kh2 Qf5) 35. Kh2 $1 $16 {[%emt 0:02:38] White is much more active.} a4 {[%emt 0:01:38]} 36. Qc3+ {[%emt 0:01:48]} ({Reject} 36. Qc6 $6 Qxc6 37. dxc6 Nb6 $15) (36. f3 {is interesting.} h4 37. Qe8 Qb7 38. Qd8) 36... Kh7 {[%emt 0:01:09]} 37. Qf3 {[%emt 0:00:38]} ({Much weaker is} 37. Qc6 $6 Qxc6 38. dxc6 Nb6 $11) 37... Kg7 {[%emt 0:00:12]} 38. Ba3 $2 {[%emt 0:01:24] [#]} (38. Qe4 $1 $16 {stays on course.}) 38... Qb3 $1 $17 {[%emt 0:00:14]} 39. Kg3 {[%emt 0:00:53]} Qxf3+ {[%emt 0:00:04]} (39... g5 $17 {Hoping for ...h4+.} 40. Qxb3 axb3) 40. Kxf3 {[%emt 0:00:19] KB-KN} Nb6 {[%emt 0:03:50]} 41. Ke4 {[%emt 0:00:32]} Nc4 {[%emt 0:00:12] [#]} (41... Nd7 $11 {remains equal.}) 42. d6 $1 {[%emt 0:00:40]} Nb6 $11 {[%emt 0:00:47] The position is equal.} (42... Nxa3 $2 43. d7 Nb5 44. d8=Q $18) 43. Ke5 {[%emt 0:01:36]} Nd7+ {[%emt 0:00:35]} (43... Nc4+ $2 44. Kd4 Nb6 45. Kc5 Nd7+ 46. Kc6 $18) 44. Kd5 {[%emt 0:00:11] Black must now prevent Kc6.} Kf6 {[%emt 0:00:29]} 45. g4 {[%emt 0:00:56]} hxg4 {[%emt 0:00:19]} 46. hxg4 {[%emt 0:00:01]} Kg5 {[%emt 0:01:43]} 47. Kc6 {[%emt 0:02:08]} Nf8 {[%emt 0:00:28]} 48. Kb5 {[%emt 0:01:04]} Kxg4 {[%emt 0:00:30]} 49. Kxa4 {[%emt 0:00:05]} Kf5 {[%emt 0:02:49]} 50. Kb5 {[%emt 0:01:22]} Ke6 {[%emt 0:00:02]} 51. Kc6 {[%emt 0:00:12]} g5 {[%emt 0:00:14]} 52. Bc1 f6 {[%emt 0:00:02]} 53. Kc7 {[%emt 0:00:45]} Nd7 {[%emt 0:00:03]} 54. Ba3 {[%emt 0:00:24]} Ne5 {[%emt 0:00:17]} 55. Bb2 {[%emt 0:00:55]} Nd7 {[%emt 0:00:11]} 56. Bc3 {[%emt 0:02:20]} f5 {[%emt 0:00:43]} 57. Bd2 {[%emt 0:00:26]} Nf6 {[%emt 0:01:57]} 58. Kc6 {[%emt 0:00:47]} f4 {[%emt 0:00:06]} 59. Bc3 {[%emt 0:00:23] White wants to mate with Bxf6.} Nd7 {[%emt 0:00:17]} 60. f3 {[%emt 0:00:45]} Nb8+ {[%emt 0:00:21]} 61. Kc7 {[%emt 0:00:46]} Na6+ {[%emt 0:00:08]} 62. Kc6 {[%emt 0:00:22]} Nb8+ {[%emt 0:00:02]} 63. Kc7 {[%emt 0:01:11]} Na6+ {[%emt 0:00:02]} 64. Kc6 {[%emt 0:00:28]} Nb8+ {[%emt 0:00:04]} 65. Kb7 {[%emt 0:00:41]} Kxd6 {[%emt 0:00:09] ...Nd7 is the strong threat.} 66. Kxb8 {[%emt 0:00:32]} Ke6 {[%emt 0:00:01]} 67. Kc7 {[%emt 0:00:18] Weighted Error Value: White=0.18 (very precise) /Black=0.14 (very precise)} 1/2-1/2

[Event "87th Spanish Championship 2022"]
[Site "Linares"]
[Date "2022.08.13"]
[Round "4.29"]
[White "Garcia Gimenez, Santiago"]
[Black "Medarde Santiago, Luis Marcos"]
[Result "0-1"]
[ECO "A04"]
[WhiteElo "2193"]
[BlackElo "2330"]
[Annotator "TA"]
[PlyCount "144"]
[EventDate "2022.08.11"]
[EventType "swiss"]
[EventCountry "ESP"]
[SourceTitle "playchess.com"]
[Source "ChessBase"]
[SourceQuality "1"]
[TimeControl "5400+30"]

{[%evp 14,144,-5,0,0,0,43,31,18,3,27,35,38,50,48,40,61,44,52,77,44,9,29,15,51,60,83,86,83,78,85,55,56,46,81,24,52,53,44,57,58,38,47,29,46,14,12,25,77,40,41,0,35,23,10,25,50,31,31,39,43,0,0,0,0,0,0,0,0,0,0,-27,-27,-32,-30,-76,-77,-77,-77,-148,-141,-125,-81,-60,-21,-311,-95,-232,-162,-676,-474,-851,-443,-308,-310,-810,-811,-825,-790,-824,-741,-662,-743,-730,-686,-1359,-1359,-1353,-868,-1309,-1303,-1240,-1268,-1212,-1212,-1366,-1359,-1359,-1359,-1359,-1359,-29969,-29969,-29966,-29967,-29970,-29971,-29969,-29965,-10533,-6070,-2487,-1400]} 1. Nf3 {[%emt 0:00:00]} c5 {[%emt 0:00:00]} 2. g3 {[%emt 0:00:00]} Nc6 {[%emt 0:01:14]} 3. d4 {[%emt 0:00:00]} cxd4 {[%emt 0:02:03]} 4. Nxd4 {[%emt 0:00:05]} g6 {[%emt 0:00:05]} 5. Bg2 Bg7 {[%emt 0:00:05]} 6. Nxc6 {[%emt 0:00:37]} bxc6 {[%emt 0:06:04]} 7. O-O {[%emt 0:00:01]} Rb8 {[%emt 0:02:03]} 8. c3 {[%emt 0:01:53]} Qa5 {[%emt 0:09:55] A04: Unusual lines after 1 Nf3 and King's Indian Attack.} 9. Nd2 {[%emt 0:01:43][%cal Bb1d2,Bd2b3,Bb3c5][%mdl 32] [#]} Ba6 $146 {[%emt 0:10:23]} ({Predecessor:} 9... Nf6 10. Nb3 Qb5 11. Bf4 d6 12. Nd4 Qxb2 13. Nxc6 Rb6 14. Bxd6 Bd7 15. Rb1 Qxa2 16. Rxb6 axb6 17. Bxe7 {1-0 (25) El Kher,H (2372)-Sorensen,T (2340) Taastrup 2001}) 10. Nb3 {[%emt 0:01:57]} Qc7 {[%emt 0:02:46] White is slightly better.} 11. Re1 {[%emt 0:01:48]} Nf6 {[%emt 0:01:17]} 12. e4 d6 {[%emt 0:00:11] Prevents Nc5.} 13. e5 {[%emt 0:02:37]} dxe5 {[%emt 0:03:28]} 14. Nc5 {[%emt 0:03:33]} Bc8 {[%emt 0:09:05] [#]} 15. Rxe5 $1 {[%emt 0:05:15]} Nd5 {[%emt 0:02:13]} (15... Qxe5 $2 16. Bxc6+ Nd7 17. Nxd7 $18) (15... O-O 16. Re1) 16. Re1 {[%emt 0:02:51] Hoping for c4.} O-O {[%emt 0:03:02]} 17. Qe2 {[%emt 0:01:45]} (17. Bxd5 cxd5 18. Nb3 (18. Qxd5 Rb5 $17) 18... Rd8 $15) 17... Qa5 {[%emt 0:03:53]} (17... Qb6 $5 {[%cal Rb6c5]} 18. Qc4 Bf5 $11) 18. Bxd5 {[%emt 0:02:22]} Qxc5 {[%emt 0:04:44]} 19. Bb3 {[%emt 0:00:56]} e5 {[%emt 0:06:17]} 20. Be3 {[%emt 0:04:05]} Qe7 {[%emt 0:00:12]} 21. Qc4 {[%emt 0:01:20]} Qc7 {[%emt 0:03:48]} 22. Bc5 {[%emt 0:02:30]} Rd8 {[%emt 0:02:51]} 23. Red1 {[%emt 0:00:08]} Be6 {[%emt 0:01:10]} 24. Qa4 {[%emt 0:00:07]} ({White should play} 24. Rxd8+ $16 Rxd8 25. Qa4) 24... Bxb3 (24... Bd5 {feels hotter.} 25. Qxa7 Qc8 26. Bb4 h5) 25. axb3 {[%emt 0:00:06]} Rxd1+ {[%emt 0:07:58]} 26. Rxd1 {[%emt 0:00:30]} Bf8 $1 {[%emt 0:00:07]} 27. Bxf8 {[%emt 0:09:57]} ({Reject} 27. Qxa7 Qxa7 28. Bxa7 Rxb3 $11) (27. Bxa7 {with more complications.} Ra8 28. Bb6 Qb7 29. Qc4) 27... Kxf8 $14 {[%emt 0:00:30][%mdl 4096] Endgame KQR-KQR} 28. b4 Kg7 {[%emt 0:03:07]} 29. Rd2 {[%emt 0:01:04]} Rb5 30. Qd1 {[%emt 0:03:29]} Rb7 {[%emt 0:01:20]} (30... c5 $1 $11 {remains equal.}) 31. Qf3 Rb8 32. g4 {[%emt 0:03:30]} Re8 {[%emt 0:04:54]} 33. g5 {[%emt 0:00:41]} Qe7 {[%emt 0:01:13] Prevents Qf6+.} 34. h4 {[%emt 0:00:07]} e4 {[%emt 0:00:17]} 35. Qf4 {[%emt 0:00:11]} (35. Qe3 {feels hotter.} Qe5 36. Kg2 a5 37. bxa5 Qxa5 38. Rd6) 35... Qe5 {[%emt 0:05:39]} 36. Qxe5+ {[%emt 0:01:31]} Rxe5 {[%emt 0:00:00] KR-KR} 37. Re2 {[%emt 0:01:12]} f5 {[%emt 0:01:31]} 38. gxf6+ {[%emt 0:01:05]} Kxf6 {[%emt 0:00:01]} 39. b3 {[%emt 0:01:44]} Kf5 {[%emt 0:00:40]} 40. Ra2 {[%emt 0:01:18]} Re7 {[%emt 0:01:30]} 41. Ra6 {[%emt 0:00:22]} Rc7 {[%emt 0:00:28]} 42. h5 {[%emt 0:00:15]} gxh5 {[%emt 0:00:52]} 43. Ra5+ {[%emt 0:00:08]} Kg4 {[%emt 0:01:41]} 44. Re5 {[%emt 0:00:26]} (44. Rc5 $1 $11 {is superior.}) 44... Kf3 $1 $17 {[%emt 0:01:33]} 45. Rxh5 {[%emt 0:00:12] [#]} Ke2 $1 {And now ...Rg7+ would win.} 46. Re5 {[%emt 0:02:00]} ({White should try} 46. Rf5) 46... Rg7+ {[%emt 0:00:30]} 47. Kh2 {[%emt 0:01:14]} Rg4 {[%emt 0:00:59]} 48. Rf5 {[%emt 0:00:36]} Kd2 {[%emt 0:00:23]} (48... Kf1 $5 {[%cal Rg4g2]} 49. Kh3 Rg2 $17) 49. Rc5 $2 {[%mdl 8192] Black keeps a firm grip on the game.} (49. c4 $11 {and White is okay.}) 49... Rg6 $2 (49... Rf4 $19 50. Kg2 Ke2 51. Rxc6 Rxf2+ 52. Kg1 Rf4) 50. c4 {[%emt 0:01:20] [#]} (50. Re5 $17) 50... Rf6 $1 $19 {[%emt 0:01:00]} 51. Kg1 {[%emt 0:00:12]} (51. Kg3) 51... Ke2 {[%emt 0:01:17] aiming for ...Rg6+.} 52. Re5 {[%emt 0:00:36]} (52. b5 $142 cxb5 53. Rxb5) 52... Rf4 {White must now prevent ...Rg4+.} 53. b5 cxb5 {[%emt 0:00:46]} 54. c5 $2 {[%emt 0:01:25]} (54. Rxb5 Rg4+ 55. Kh2) 54... Rg4+ {[%emt 0:00:24]} 55. Kh2 {[%emt 0:00:00]} Kxf2 {[%emt 0:00:12][%cal Rg4h4]} 56. Rf5+ {[%emt 0:00:40]} Ke2 {[%emt 0:01:43]} 57. c6 a6 ({But not} 57... Rg7 $2 58. Rxb5 Rc7 59. Re5 $19) 58. c7 {[%emt 0:02:36]} Rg8 {[%emt 0:00:32]} 59. Rc5 {[%emt 0:00:16]} Rc8 {[%emt 0:00:01]} 60. Kg3 {[%emt 0:00:31]} Ke3 {[%emt 0:00:14]} 61. b4 {[%emt 0:00:35]} Kd4 {[%emt 0:00:36]} 62. Kf4 {[%emt 0:00:46]} e3 {[%emt 0:00:15] ...e2 is the strong threat.} 63. Kf3 {[%emt 0:00:07]} Kd3 {[%emt 0:00:23]} 64. Rd5+ {[%emt 0:00:08]} Kc4 {[%emt 0:00:13]} 65. Rd7 {[%emt 0:00:03]} Kxb4 {[%emt 0:00:38]} 66. Kxe3 {[%emt 0:00:08]} Kc5 {[%emt 0:00:15]} 67. Rxh7 {[%emt 0:00:22]} Kb6 {[%emt 0:00:10]} 68. Rh6+ {[%emt 0:00:10]} Kb7 {[%emt 0:00:04]} 69. Kd4 {[%emt 0:00:07]} Rxc7 {[%emt 0:00:06]} 70. Rg6 {[%emt 0:00:19]} Rc6 {[%emt 0:00:10]} 71. Rg7+ {[%emt 0:00:10]} Kb6 {[%emt 0:00:04]} 72. Rg8 {[%emt 0:00:09]} Ka5 {[%emt 0:00:06] Weighted Error Value: White=0.61/Black=0.28 (precise)} 0-1

[Event "87th Spanish Championship 2022"]
[Site "Linares"]
[Date "2022.08.13"]
[Round "4.30"]
[White "Domingo Nunez, Ruben"]
[Black "Centeno Mendoza, Julio Stefano"]
[Result "1-0"]
[ECO "A06"]
[WhiteElo "2361"]
[BlackElo "2148"]
[Annotator "TA"]
[PlyCount "85"]
[EventDate "2022.08.11"]
[EventType "swiss"]
[EventCountry "ESP"]
[SourceTitle "playchess.com"]
[Source "ChessBase"]
[SourceQuality "1"]
[TimeControl "5400+30"]

{[%evp 14,85,5,0,0,0,0,-4,0,-2,7,2,7,3,19,-10,29,-36,34,-47,33,28,50,-20,-8,-8,-8,-8,-8,-8,-8,-10,0,0,0,0,0,0,4,0,0,0,0,0,0,0,0,0,0,0,106,103,256,220,406,399,382,375,458,375,5269,4910,4195,1848,29956,29957,29971,29969,4133,0,0,0,0,0]} 1. Nf3 {[%emt 0:00:01]} d5 {[%emt 0:00:10]} 2. b3 {[%emt 0:00:03]} Nf6 {[%emt 0:00:18]} 3. Bb2 {[%emt 0:00:04]} e6 {[%emt 0:00:08]} 4. g3 {[%emt 0:00:28]} Be7 {[%emt 0:00:29]} 5. Bg2 {[%emt 0:00:04]} O-O {[%emt 0:00:19]} 6. O-O {[%emt 0:00:10]} c5 {[%emt 0:01:21]} 7. e3 {[%emt 0:00:03]} Nc6 {[%emt 0:00:46]} 8. d4 {[%emt 0:00:07]} b6 {[%emt 0:03:14] D02: 1 d4 d5 2 Nf3 sidelines, including 2...Nf6 3 g3 and 2...Nf6 3 Bf4.} 9. Ne5 {[%emt 0:01:06] 9.c4 is the modern continuation.} Bb7 {[%emt 0:10:08] [#]} 10. Qe2 $146 {[%emt 0:02:09]} ({Predecessor:} 10. Nxc6 Bxc6 11. c4 cxd4 12. Qxd4 Rc8 13. Nd2 dxc4 14. Bxc6 Rxc6 15. Nxc4 Qa8 16. a4 {0-1 (81) Suarez Garcia,C (2469)-Mareco,S (2649) Santiago de Compostela 2018}) 10... Qc7 {[%emt 0:00:55]} 11. Nxc6 {[%emt 0:07:43]} Bxc6 {[%emt 0:00:33]} 12. dxc5 {[%emt 0:00:03]} bxc5 {[%emt 0:00:05]} 13. c4 {[%emt 0:00:02]} Rfd8 {[%emt 0:01:22]} (13... dxc4 {looks sharper.} 14. Bxc6 Qxc6 15. Qxc4 Rfd8) 14. Nc3 {[%emt 0:00:33]} a6 {[%emt 0:00:44]} 15. Rfd1 {[%emt 0:02:26]} (15. cxd5 $11 exd5 16. Rfd1) 15... Rac8 {[%emt 0:00:56]} ({Better is} 15... d4 $15 16. Na4 Bxg2 17. Kxg2 e5) 16. Rac1 {[%emt 0:11:01]} ({White should try} 16. cxd5 $14 exd5 17. Rac1) 16... Qb6 {[%emt 0:05:30]} (16... d4 $15 17. Nb1 Bxg2 18. Kxg2 e5) 17. cxd5 $14 {[%emt 0:16:45]} exd5 {[%emt 0:00:19]} 18. Qc2 {[%emt 0:07:08]} (18. Qe1 $14) 18... d4 $11 {[%emt 0:24:45] Threatens to win with ...Bxg2.} 19. Ne4 {[%emt 0:02:51]} Bxe4 {[%emt 0:00:07]} 20. Bxe4 {[%emt 0:00:03]} dxe3 {[%emt 0:00:09]} 21. fxe3 {[%emt 0:00:39]} Nxe4 {[%emt 0:00:08]} 22. Qxe4 {[%emt 0:01:06]} Bf6 {[%emt 0:00:19]} 23. Bxf6 {[%emt 0:11:06]} Qxf6 {[%emt 0:00:08]} 24. Rf1 {[%emt 0:00:14]} Qb6 {[%emt 0:04:34]} 25. Qc4 {[%emt 0:01:28]} Rd7 {[%emt 0:02:08]} 26. Rf5 {[%emt 0:14:14]} g6 {[%emt 0:02:55]} (26... Qh6 {feels hotter.} 27. Re1 Qc6 28. Ref1 Qb7) 27. Rd5 {[%emt 0:04:22]} (27. Rf4 {with more complications.} Qb7 28. Rcf1 a5 29. Qc3) 27... Rxd5 {[%emt 0:01:00]} 28. Qxd5 {[%emt 0:00:04][%mdl 4096] Endgame KQR-KQR} Rd8 {[%emt 0:00:09]} 29. Qe5 {[%emt 0:00:48]} Qb4 {[%emt 0:13:13]} 30. Qe7 {[%emt 0:02:15]} Qd2 {[%emt 0:00:16]} 31. Rf1 {[%emt 0:00:07]} Qd5 {[%emt 0:00:21]} (31... Rf8 $11 {keeps the balance.}) 32. Rxf7 $1 $16 {[%emt 0:00:40]} Qd1+ $2 {[%emt 0:00:35]} (32... Qxf7 $16 33. Qxd8+ Kg7) 33. Rf1 $18 {[%emt 0:01:18]} Qd5 {[%emt 0:00:04] Against Qe6+} (33... Qd3 34. Kg2 (34. Qxc5 Re8 $18) 34... Qd5+ 35. e4 Qd2+ 36. Rf2 Qd4) 34. e4 {[%emt 0:01:50]} Qd4+ {[%emt 0:00:13]} 35. Kg2 {[%emt 0:00:08]} ({Weaker is} 35. Kh1 Ra8 36. Kg2 a5 37. Qe6+ Kh8 $18) 35... a5 {[%emt 0:01:08]} 36. h4 {[%emt 0:02:38][%cal Oh4h5] And now h5! would win.} a4 $2 {[%emt 0:01:32]} (36... Rb8 37. Rf2 Qc3) 37. h5 {[%emt 0:05:52] Threatening mate with h6.} gxh5 {[%emt 0:00:28]} 38. Rf5 {[%emt 0:00:57][%csl LRc5,LRh5]} axb3 {[%emt 0:00:56]} 39. axb3 {[%emt 0:00:14]} h4 {[%emt 0:00:35]} 40. Rg5+ {[%emt 0:06:25]} Kh8 {[%emt 0:00:06] [#]} 41. Rd5 $2 {[%emt 0:00:05]} (41. Rg7 $1 $18 {[%cal Rg7h7][%mdl 512]} Qb2+ (41... Qxg7 42. Qxd8+) 42. Kh3 Qxg7 43. Qxd8+ Qg8 44. Qxg8+ Kxg8 45. gxh4) 41... Qb2+ $11 {[%emt 0:00:21]} 42. Kh3 {[%emt 0:00:01][%cal Rd5d8] Really sharp!} Rg8 {[%emt 0:00:42]} 43. Rd8 {[%mdl 32768] Weighted Error Value: White=0.30/Black=0.44. Loss on time!?} (43. Rxc5 $2 {gets mated.} Rxg3+ 44. Kxh4 Qh2#) 1-0